[Event "10th Menchik Memorial 2025"]
[Site "London"]
[Date "2025.03.23"]
[Round "7.1"]
[White "Zimina, Olga"]
[Black "Yao, Lan"]
[Result "1-0"]
[Annotator "NA RC"]
[ECO "D02"]
[WhiteElo "2293"]
[BlackElo "2294"]
[PlyCount "173"]
[EventDate "2025.03.11"]
[EventType "tourn"]
[EventCountry "ENG"]
[SourceTitle "playchess.com"]
[Source "ChessBase"]
[SourceQuality "1"]
[TimeControl "5400+30"]

1. d4 {[%emt 0:00:04]} Nf6 {[%emt 0:00:26]} 2. Nf3 {[%emt 0:00:05]} d5 {[%emt 0:00:04]} 3. Bf4 {[%emt 0:00:07]} c5 {[%emt 0:01:38]} 4. e3 {[%emt 0:00:07]} Nc6 {[%emt 0:00:47]} 5. Nbd2 {[%emt 0:00:07]} Bg4 {[%emt 0:00:58]} 6. c3 {[%emt 0:04:51]} e6 {[%emt 0:00:17]} 7. Qa4 {[%emt 0:09:35]} Nd7 {[%emt 0:05:22]} 8. Bb5 {[%emt 0:01:07]} Qc8 {[%emt 0:02:33]} 9. Ne5 {[%emt 0:07:27]} Ncxe5 {[%emt 0:04:44]} 10. Bxe5 {[%emt 0:00:36]} a6 {[%emt 0:00:25]} 11. Bxd7+ {[%emt 0:01:52]} Qxd7 {[%emt 0:00:04]} 12. Qxd7+ {[%emt 0:00:57]} Kxd7 {[%emt 0:00:02]} 13. dxc5 {[%emt 0:00:14]} f6 {[%emt 0:01:02]} 14. Bd6 {[%emt 0:00:15]} Bxd6 {[%emt 0:00:06]} 15. cxd6 {[%emt 0:00:04]} Kxd6 {[%emt 0:00:04]} 16. f3 {[%emt 0:03:13]} Bh5 {[%emt 0:01:52]} 17. e4 {[%emt 0:01:30]} dxe4 {[%emt 0:01:16]} 18. Nxe4+ {[%emt 0:00:08]} Kc6 {[%emt 0:00:28]} 19. O-O-O {[%emt 0:01:46]} Rad8 {[%emt 0:00:06]} 20. b4 {[%emt 0:00:17]} b6 {[%emt 0:01:32]} 21. Kb2 {[%emt 0:05:45]} Bg6 {[%emt 0:00:52]} 22. c4 {[%emt 0:03:07]} e5 {[%emt 0:03:58]} 23. Kc3 {[%emt 0:01:46]} h6 {[%emt 0:03:51]} 24. a4 {[%emt 0:01:53]} f5 {[%emt 0:03:43]} 25. Nf2 {[%emt 0:12:30]} Rhe8 {[%emt 0:26:43]} 26. b5+ {[%emt 0:15:06]} axb5 {[%emt 0:05:33]} 27. axb5+ {[%emt 0:01:10]} Kb7 {[%emt 0:00:39]} 28. Rxd8 {[%emt 0:00:40]} Rxd8 {[%emt 0:00:02]} 29. Re1 {[%emt 0:00:13]} Re8 {[%emt 0:00:25]} 30. Nd3 {[%emt 0:01:45]} e4 {[%emt 0:00:10]} 31. fxe4 {[%emt 0:01:41]} fxe4 {[%emt 0:01:04]} 32. Nb4 {[%emt 0:07:56]} Bf5 {[%emt 0:11:22]} 33. Nd5 {[%emt 0:02:16]} Ra8 {[%emt 0:02:32]} 34. g4 {[%emt 0:01:49]} Bh7 {[%emt 0:04:44]} 35. Kd4 {[%emt 0:05:40]} Rf8 {[%emt 0:02:01]} 36. h4 {[%emt 0:02:04]} Rf3 {[%emt 0:04:33]} 37. Ne3 {[%emt 0:00:11]} Rh3 {[%emt 0:04:10]} 38. h5 {[%emt 0:00:08]} Rf3 {[%emt 0:02:45]} 39. g5 {[%emt 0:01:43]} hxg5 {[%emt 0:00:26]} 40. Rg1 {[%emt 0:00:04]} Rf7 {[%emt 0:01:32]} 41. Rxg5 {[%emt 0:00:04]} Rd7+ {[%emt 0:01:10]} 42. Ke5 {[%emt 0:00:22]} Re7+ {[%emt 0:01:59]} 43. Kd6 {[%emt 0:00:13]} Rf7 {[%emt 0:00:12]} 44. Nd5 {[%emt 0:03:01]} Bf5 {[%emt 0:02:51]} 45. Ke5 {[%emt 0:01:07]} e3 {[%emt 0:00:20]} 46. Nxe3 {[%emt 0:00:21]} Bd3 {[%emt 0:00:03]} 47. Kd4 {[%emt 0:00:26]} Rd7+ {[%emt 0:01:06]} 48. Nd5 {[%emt 0:00:06]} Be2 {[%emt 0:01:03]} 49. Rf5 {[%emt 0:04:40]} Bg4 {[%emt 0:00:23]} 50. Re5 {[%emt 0:00:10]} Ka7 {[%emt 0:00:46]} 51. Ke3 {[%emt 0:00:43]} Rf7 {[%emt 0:00:23]} 52. Ne7 {[%emt 0:00:52]} Kb7 {[%emt 0:00:15]} 53. Nc6 {[%emt 0:00:36]} Kc7 {[%emt 0:00:43]} 54. Rg5 {[%emt 0:00:20]} Bd1 {[%emt 0:00:46]} 55. Ne5 {[%emt 0:00:28]} Re7 {[%emt 0:00:02]} 56. Kd4 {[%emt 0:01:05]} Be2 {[%emt 0:00:18]} 57. Kd5 {[%emt 0:00:41]} Bd1 {[%emt 0:00:31]} 58. Rf5 {[%emt 0:00:31]} Be2 {[%emt 0:00:33]} 59. Kd4 {[%emt 0:00:57]} Kb7 {[%emt 0:00:44]} 60. Kc3 {[%emt 0:00:38]} Rc7 {[%emt 0:00:54]} 61. Nc6 {[%emt 0:00:22]} Rd7 {[%emt 0:00:32]} 62. Nd4 {[%emt 0:00:22]} Bd1 {[%emt 0:00:07]} 63. Rg5 {[%emt 0:00:05]} Rf7 {[%emt 0:00:55]} 64. Nf5 {[%emt 0:00:37]} Kb8 {[%emt 0:00:27]} 65. Nxg7 {[%emt 0:00:35]} Rf3+ {[%emt 0:00:03]} 66. Kd2 {[%emt 0:00:18]} Bb3 {[%emt 0:00:20]} 67. Rg4 {[%emt 0:01:02]} Rh3 {[%emt 0:00:12]} 68. Rd4 {[%emt 0:00:30]} Kc8 {[%emt 0:01:26]} 69. Rd3 {[%emt 0:00:46]} Rh2+ {[%emt 0:00:02]} 70. Kc3 {[%emt 0:00:09]} Ba2 {[%emt 0:00:51]} 71. Rd6 {[%emt 0:00:19]} Kb7 {[%emt 0:00:33]} 72. h6 {[%emt 0:00:46]} Rh3+ {[%emt 0:00:29]} 73. Kb4 {[%emt 0:00:57]} Bb1 {[%emt 0:00:24]} 74. Ne6 {[%emt 0:00:43]} Bc2 {[%emt 0:00:39]} 75. Nd4 {[%emt 0:00:05]} Be4 {[%emt 0:00:25]} 76. Re6 {[%emt 0:00:13]} Bb1 {[%emt 0:00:05]} 77. Rf6 {[%emt 0:00:46]} Be4 {[%emt 0:00:25]} 78. Ne6 {[%emt 0:01:06]} Bc2 {[%emt 0:00:05]} 79. c5 {[%emt 0:00:14]} bxc5+ {[%emt 0:01:30]} 80. Nxc5+ {[%emt 0:00:01]} Kc8 {[%emt 0:00:31]} 81. Rc6+ {[%emt 0:00:23]} Kd8 {[%emt 0:00:19]} 82. Nb7+ {[%emt 0:00:06]} Kd7 {[%emt 0:00:34]} 83. Rxc2 {[%emt 0:00:06]} Rxh6 {[%emt 0:00:02]} 84. Ka5 {[%emt 0:00:27]} Rh1 {[%emt 0:00:10]} 85. Ka6 {[%emt 0:00:13]} Ra1+ {[%emt 0:00:28]} 86. Na5 {[%emt 0:00:05]} Rb1 {[%emt 0:00:03]} 87. b6 {[%emt 0:00:06]} 1-0

[Event "10th Menchik Memorial 2025"]
[Site "London"]
[Date "2025.03.23"]
[Round "7.2"]
[White "Sliwicka, Alicja"]
[Black "Toma, Katarzyna"]
[Result "1/2-1/2"]
[Annotator "TA"]
[ECO "B33"]
[WhiteElo "2342"]
[BlackElo "2177"]
[PlyCount "74"]
[EventDate "2025.03.11"]
[EventType "tourn"]
[EventCountry "ENG"]
[SourceTitle "playchess.com"]
[Source "ChessBase"]
[SourceQuality "1"]
[TimeControl "5400+30"]

{[%evp 20,74,12,5,30,37,42,41,38,16,11,0,0,0,12,0,0,0,0,13,6,0,0,0,22,8,0,0,0,0,0,0,0,-36,-39,-43,-34,-57,-48,-46,-20,-33,-24,-36,-33,-50,-20,-59,0,-2,-2,0,0,0,-2,-4,-3]} 1. e4 {[%emt 0:03:49]} c5 {[%emt 0:00:05]} 2. Nf3 {[%emt 0:00:08]} Nc6 {[%emt 0:00:06]} 3. d4 {[%emt 0:00:05]} cxd4 {[%emt 0:00:08]} 4. Nxd4 {[%emt 0:00:04]} Qb6 {[%emt 0:00:34]} 5. Nb3 {[%emt 0:00:53]} Nf6 {[%emt 0:00:15]} 6. Nc3 {[%emt 0:00:40]} e6 {[%emt 0:00:11]} 7. Bd3 {[%emt 0:04:32]} d6 {[%emt 0:00:25]} 8. O-O {[%emt 0:00:11]} Be7 {[%emt 0:00:05]} 9. Kh1 {[%emt 0:00:57]} a6 {[%emt 0:00:39]} 10. f4 {[%emt 0:01:20]} Qc7 {[%emt 0:00:46]} 11. Qf3 {[%emt 0:00:28]} Nb4 {[%emt 0:00:39] B33: Sicilian: Pelikan and Sveshnikov Variations.} 12. Bd2 {[%emt 0:01:48][%cal Oc3b5]} Nxd3 {[%emt 0:00:26]} 13. cxd3 {[%emt 0:00:16]} O-O {[%emt 0:01:36] White is slightly better.} 14. Rfc1 $146 {[%emt 0:01:42][%cal Oc3d5,Bf1c1,Bc1c6,Bc6c2][%mdl 32]} (14. Rac1 Qd8 15. g4 Nd7 16. g5 b5 17. Ne2 d5 18. e5 b4 19. d4 a5 20. Ng3 {0-1 Campelo,L (2220)-Galego,L (2494) JAI op Sao Caetano do Sul 2009 (2)}) 14... Qd8 {[%emt 0:06:27]} 15. Na4 {[%emt 0:12:28]} b6 {[%emt 0:17:21][%cal Bb7b6,Bb6b5,Bb5b4][%mdl 32] Wards off Ba5} 16. Nd4 {[%emt 0:14:36]} Bd7 {[%emt 0:04:55]} 17. Nc6 {[%emt 0:00:32]} Bxc6 {[%emt 0:00:05]} 18. Rxc6 {[%emt 0:00:06]} Nd7 {[%emt 0:02:46] [#]} 19. Be3 {[%emt 0:05:35]} Rb8 {[%emt 0:02:18]} 20. Rc2 {[%emt 0:02:50]} b5 {[%emt 0:07:01]} 21. Nc3 {[%emt 0:00:16]} Qa5 {[%emt 0:00:31]} 22. Bd2 {[%emt 0:02:50][%cal Oc3d5]} b4 $36 {[%emt 0:06:28][%cal Of8c8][%mdl 2048] [#] ...Rfc8! would now be deadly. Black is more active.} 23. Ne2 {[%emt 0:00:31]} Rfc8 {[%emt 0:06:40]} 24. Rxc8+ {[%emt 0:01:20]} Rxc8 {[%emt 0:00:04]} 25. a3 {[%emt 0:05:19]} d5 {[%emt 0:09:12]} 26. Rf1 {[%emt 0:00:50]} dxe4 {[%emt 0:06:06]} 27. dxe4 {[%emt 0:00:03]} Qb5 {[%emt 0:01:06]} 28. axb4 {[%emt 0:00:44]} Bxb4 {[%emt 0:00:10]} 29. Nc3 {[%emt 0:00:36]} Qb7 {[%emt 0:00:54]} 30. f5 {[%emt 0:02:13]} Nf6 {[%emt 0:09:11]} 31. fxe6 {[%emt 0:10:17]} fxe6 {[%emt 0:00:01]} 32. Qh3 {[%emt 0:00:52] e5 would now be deadly.} Re8 {[%emt 0:01:41]} (32... Nxe4 $2 {is the wrong capture.} 33. Qxe6+ Kh8 34. Nxe4 $18 (34. Qxe4 Qb8 $18)) (32... Qc6 {simplifies} 33. e5 Bxc3 34. Qxc3 Qxc3 35. Bxc3 Nd5) 33. e5 {[%emt 0:01:48]} Nd5 {[%emt 0:09:02]} (33... Nd7 $15) 34. Qh5 $11 {[%emt 0:01:28] The position is equal.} Rf8 {[%emt 0:01:16] Successful Defense Black} 35. Rxf8+ {[%emt 0:02:53]} Bxf8 {[%emt 0:00:02]} 36. Nxd5 {[%emt 0:02:40]} Qxd5 {[%emt 0:00:20]} 37. Bc3 {[%emt 0:03:35]} Qd3 {[%emt 0:00:56] Weighted Error Value: White=0.07 (flawless) /Black=0.12 (very precise)   Mistake:       	---       	Black=1      Inaccurate:     	White=2     	Black=2      OK:         	White=11    	Black=8      Best:        	White=1     	---} 1/2-1/2

[Event "10th Menchik Memorial 2025"]
[Site "London"]
[Date "2025.03.23"]
[Round "7.3"]
[White "Hunt, Harriet V"]
[Black "Navrotescu, Andreea"]
[Result "1/2-1/2"]
[Annotator "NA RC"]
[ECO "B33"]
[WhiteElo "2296"]
[BlackElo "2288"]
[PlyCount "69"]
[EventDate "2025.03.11"]
[EventType "tourn"]
[EventCountry "ENG"]
[SourceTitle "playchess.com"]
[Source "ChessBase"]
[SourceQuality "1"]
[TimeControl "5400+30"]

1. e4 {[%emt 0:00:01]} c5 {[%emt 0:00:06]} 2. Nc3 {[%emt 0:00:15]} e6 {[%emt 0:00:11]} 3. Nf3 {[%emt 0:01:01]} Nc6 {[%emt 0:00:10]} 4. d4 {[%emt 0:00:42]} cxd4 {[%emt 0:00:07]} 5. Nxd4 {[%emt 0:00:04]} Nf6 {[%emt 0:00:06]} 6. Ndb5 {[%emt 0:02:10]} d6 {[%emt 0:00:10]} 7. Bf4 {[%emt 0:00:50]} e5 {[%emt 0:00:07]} 8. Bg5 {[%emt 0:00:06]} a6 {[%emt 0:00:04]} 9. Na3 {[%emt 0:00:24]} b5 {[%emt 0:00:07]} 10. Nd5 {[%emt 0:00:28]} Be7 {[%emt 0:00:08]} 11. Bxf6 {[%emt 0:00:07]} Bxf6 {[%emt 0:00:04]} 12. c3 {[%emt 0:00:24]} O-O {[%emt 0:02:53]} 13. g3 {[%emt 0:01:51]} Bg5 {[%emt 0:02:35]} 14. Nc2 {[%emt 0:03:42]} Rb8 {[%emt 0:04:53]} 15. Bg2 {[%emt 0:05:01]} Be6 {[%emt 0:01:16]} 16. O-O {[%emt 0:04:04]} a5 {[%emt 0:09:47]} 17. Nce3 {[%emt 0:10:42]} b4 {[%emt 0:01:54]} 18. Nc4 {[%emt 0:10:56]} Ne7 {[%emt 0:07:17]} 19. Qa4 {[%emt 0:10:26]} bxc3 {[%emt 0:10:15]} 20. bxc3 {[%emt 0:00:49]} Nxd5 {[%emt 0:00:41]} 21. exd5 {[%emt 0:00:15]} Bd7 {[%emt 0:01:30]} 22. Qxa5 {[%emt 0:05:00]} Bb5 {[%emt 0:00:15]} 23. Qxd8 {[%emt 0:00:28]} Rfxd8 {[%emt 0:00:26]} 24. Na5 {[%emt 0:00:16]} Bxf1 {[%emt 0:00:08]} 25. Bxf1 {[%emt 0:00:05]} Rb2 {[%emt 0:04:36]} 26. a4 {[%emt 0:04:28]} Ra8 {[%emt 0:19:47]} 27. Nc4 {[%emt 0:05:48]} Rb3 {[%emt 0:00:21]} 28. Nxd6 {[%emt 0:01:57]} Rxc3 {[%emt 0:00:35]} 29. a5 {[%emt 0:04:50]} Rc5 {[%emt 0:10:43]} 30. a6 {[%emt 0:04:56]} Bd8 {[%emt 0:02:20]} 31. Rb1 {[%emt 0:08:14]} Rxd5 {[%emt 0:04:07]} 32. Nxf7 {[%emt 0:02:11]} Kxf7 {[%emt 0:00:35]} 33. Bc4 {[%emt 0:00:06]} Kf6 {[%emt 0:02:20]} 34. Bxd5 {[%emt 0:00:06]} Rxa6 {[%emt 0:00:04]} 35. Kg2 {[%emt 0:00:27]} 1/2-1/2

[Event "10th Menchik Memorial 2025"]
[Site "London"]
[Date "2025.03.23"]
[Round "7.4"]
[White "Schulze, Lara"]
[Black "Van Foreest, Machteld"]
[Result "1/2-1/2"]
[Annotator "TA"]
[ECO "B40"]
[WhiteElo "2313"]
[BlackElo "2352"]
[PlyCount "114"]
[EventDate "2025.03.11"]
[EventType "tourn"]
[EventCountry "ENG"]
[SourceTitle "playchess.com"]
[Source "ChessBase"]
[SourceQuality "1"]
[TimeControl "5400+30"]

{[%evp 9,114,12,36,26,24,24,27,20,29,7,16,7,8,11,7,0,0,9,9,0,0,0,0,0,0,0,0,0,0,0,0,0,0,0,0,0,0,-14,-14,-14,-14,-14,-14,-13,-14,-118,-108,-145,-145,-167,-171,-201,-192,-170,-160,-187,-170,-200,-129,-141,-74,-109,0,0,0,0,0,0,0,0,0,0,0,0,0,0,0,0,0,0,0,0,0,0,0,0,0,0,0,0,0,0,0,0,0,0,0,0,0,0,0,0,0,0,0,0,0]} 1. e4 {[%emt 0:00:02]} c5 {[%emt 0:00:08]} 2. Nf3 {[%emt 0:00:13]} e6 {[%emt 0:00:09]} 3. c3 {[%emt 0:00:06]} d5 {[%emt 0:00:12]} 4. exd5 {[%emt 0:03:04]} exd5 {[%emt 0:00:05]} 5. Bb5+ {[%emt 0:01:59]} Bd7 {[%emt 0:00:50]} 6. Bxd7+ {[%emt 0:06:33] B40: Sicilian: 2...e6, Unusual lines.} Nxd7 {[%emt 0:00:18]} 7. O-O {[%emt 0:00:09]} Bd6 {[%emt 0:14:52]} 8. d4 {[%emt 0:01:36] White has an edge.} Ne7 {[%emt 0:00:39]} 9. Bg5 {[%emt 0:07:41]} O-O {[%emt 0:08:00]} 10. Bxe7 $146 {[%emt 0:10:54]} (10. Nbd2 c4 11. Re1 Re8 12. Qc2 f6 13. Bh4 Nf8 14. Bg3 g6 15. Re2 Nf5 16. Rxe8 Qxe8 {½-½ Matejovsky,O (2069)-Jiruse,J (2114) CZE-chT2c 0607 2006 (4.8)}) 10... Bxe7 {[%emt 0:00:54]} 11. dxc5 {[%emt 0:02:06]} Nxc5 {[%emt 0:00:11]} 12. Nbd2 {[%emt 0:00:13]} Qb6 {[%emt 0:02:07]} 13. Nb3 {[%emt 0:01:50]} Rfd8 {[%emt 0:05:31]} 14. Nxc5 {[%emt 0:12:13]} Bxc5 {[%emt 0:00:21]} 15. Qd2 {[%emt 0:01:22]} d4 {[%emt 0:04:12]} 16. b4 {[%emt 0:04:21]} Be7 {[%emt 0:02:25]} 17. Nxd4 {[%emt 0:00:08]} Bxb4 {[%emt 0:00:31]} 18. Rab1 {[%emt 0:01:16]} Bxc3 {[%emt 0:00:08]} 19. Qxc3 {[%emt 0:00:18]} Qxd4 {[%emt 0:00:05]} 20. Qxd4 {[%emt 0:00:16]} Rxd4 {[%emt 0:00:05]} 21. Rxb7 $11 {[%emt 0:00:08][%mdl 4096] Endgame KRR-KRR} Rd2 {[%emt 0:00:12]} 22. Rfb1 {[%emt 0:04:38][%cal Ob7a7]} Rad8 {[%emt 0:03:33] ( -> ...Rd1+)} 23. Rb8 {[%emt 0:01:19]} g6 {[%emt 0:00:15][%cal Od8b8]} 24. Rxd8+ $1 {[%emt 0:09:42]} Rxd8 {[%emt 0:00:04] KR-KR} 25. g3 {[%emt 0:01:22]} Rd2 {[%emt 0:00:07]} 26. a4 {[%emt 0:01:14]} Rd4 {[%emt 0:00:04]} 27. h4 {[%emt 0:01:47]} (27. a5 $1 $11) 27... Rxa4 $17 {[%emt 0:00:10]} 28. Rb8+ {[%emt 0:00:04]} Kg7 {[%emt 0:00:06]} 29. Ra8 {[%emt 0:00:04]} h5 {[%emt 0:01:28]} 30. Kg2 {[%emt 0:00:04]} Kf6 {[%emt 0:00:06]} 31. Kf3 {[%emt 0:00:11]} Kf5 {[%emt 0:01:09]} 32. Rc8 {[%emt 0:01:41] [#]} Ra3+ $1 {[%emt 0:01:27]} 33. Kg2 {[%emt 0:00:09]} Ra5 {[%emt 0:02:05]} 34. Ra8 {[%emt 0:01:13]} Ke4 {[%emt 0:01:31]} (34... Ra1 $142 35. Rb8 Ra4) 35. Re8+ {[%emt 0:01:35] [#]} Kd4 {[%emt 0:00:08]} (35... Re5 $1 $17 {[%cal Re5e8]} 36. Rd8 Re7) 36. Re7 $11 {[%emt 0:01:01] The position is equal.} f6 {[%emt 0:15:48]} 37. Re6 {[%emt 0:02:17]} g5 {[%emt 0:00:07]} 38. Rxf6 {[%emt 0:01:32]} g4 {[%emt 0:00:05]} 39. f3 {[%emt 0:06:35] And now fxg4 would win.} Ra2+ {[%emt 0:00:18]} 40. Kg1 {[%emt 0:01:34]} Ke5 {[%emt 0:01:02]} 41. Rf7 {[%emt 0:01:40]} Ke6 {[%emt 0:01:07]} 42. Rf8 {[%emt 0:01:43]} Ra3 {[%emt 0:00:34]} 43. Re8+ {[%emt 0:03:30]} Kf6 {[%emt 0:01:45]} 44. Rh8 {[%emt 0:02:55]} Ra1+ {[%emt 0:13:20]} 45. Kf2 {[%emt 0:00:25]} Ra2+ {[%emt 0:00:03]} 46. Kf1 {[%emt 0:02:08]} gxf3 {[%emt 0:05:23]} 47. Rf8+ {[%emt 0:00:13]} Ke5 {[%emt 0:01:06]} 48. Rxf3 {[%emt 0:00:02]} a5 {[%emt 0:00:06]} 49. Rf8 {[%emt 0:02:31]} Ke4 {[%emt 0:02:58]} 50. Rh8 {[%emt 0:01:03]} Kf3 {[%emt 0:00:42][%cal Ra2a1]} 51. Ke1 {[%emt 0:00:10]} Re2+ {[%emt 0:01:04]} 52. Kd1 {[%emt 0:00:07] Threatening mate with Rf8+.} Re5 {[%emt 0:00:06]} 53. Rg8 {[%emt 0:00:13]} a4 {[%emt 0:02:09]} 54. Kc2 {[%emt 0:00:57]} a3 {[%emt 0:00:34] aiming for ...Rb5.} 55. Kb3 {[%emt 0:00:33]} Kg2 {[%emt 0:00:27]} 56. Rg5 {[%emt 0:01:56]} Re3+ {[%emt 0:00:10]} 57. Ka2 {[%emt 0:00:01]} Rxg3 {[%emt 0:00:09] And White is the lucky defender.   Weighted Error Value: White=0.10 (very precise) /Black=0.07 (flawless)   Mistake:       	White=1     	Black=2      Inaccurate:     	White=2     	Black=1      OK:         	White=27    	Black=26     Best:        	White=3     	---        Strong:       	White=1     	---} 1/2-1/2

[Event "10th Menchik Memorial 2025"]
[Site "London"]
[Date "2025.03.23"]
[Round "7.5"]
[White "Unuk, Laura"]
[Black "Mirzoeva, Elmira"]
[Result "0-1"]
[Annotator "TA"]
[ECO "A45"]
[WhiteElo "2301"]
[BlackElo "2272"]
[PlyCount "100"]
[EventDate "2025.03.11"]
[EventType "tourn"]
[EventCountry "ENG"]
[SourceTitle "playchess.com"]
[Source "ChessBase"]
[SourceQuality "1"]
[TimeControl "5400+30"]

{[%evp 9,100,-20,-14,-29,-16,-12,-17,-17,-6,-27,-1,-4,9,-24,-23,-18,0,-8,2,-62,-61,-64,-39,-31,43,52,75,53,63,46,27,31,105,-105,-105,-91,-95,-160,-184,-171,-160,-181,-160,-166,-155,-224,-210,-229,-228,-234,-224,-214,-216,-252,-253,-254,-241,-217,-224,-222,-206,-245,0,-530,-517,-571,-563,-562,-564,-1320,0,-421,0,-532,-525,-2829,-2315,-29986,-29987,-29996,-29997,-29997,-29996,-29996,-29996,-29996,-29993,-29993,0,-29996,-29997,-29998,-29999]} 1. d4 {[%emt 0:00:06]} Nf6 {[%emt 0:00:10]} 2. Bf4 {[%emt 0:00:11]} b6 {[%emt 0:00:33]} 3. Nc3 {[%emt 0:03:00]} Bb7 {[%emt 0:00:30]} 4. f3 {[%emt 0:00:06]} d5 {[%emt 0:00:44]} 5. Nb5 {[%emt 0:10:46]} Na6 {[%emt 0:00:44]} 6. e3 {[%emt 0:00:12] A45: Trompowsky Attack.} c6 {[%emt 0:01:38]} 7. Nc3 {[%emt 0:00:40]} e6 {[%emt 0:02:36]} 8. g4 {[%emt 0:08:54] The position is equal.} Be7 $146 {[%emt 0:07:27]} ({Predecessor:} 8... Bd6 9. Qd2 Qe7 10. O-O-O Nc7 11. Bxd6 Qxd6 12. e4 dxe4 13. fxe4 Qe7 14. g5 Nd7 {1-0 Carlsen,M (2830)-Mitrabha,G (2526) Titled Tuesday intern op 19th Mar Late blitz 2024 (6)}) 9. Qd2 {[%emt 0:04:04]} Nc7 {[%emt 0:02:49]} 10. O-O-O $1 {[%emt 0:11:43]} b5 {[%emt 0:05:07]} 11. Kb1 {[%emt 0:06:21]} a5 {[%emt 0:04:47]} 12. h4 {[%emt 0:02:06]} a4 {[%emt 0:02:36]} 13. Qh2 {[%emt 0:00:06]} Na6 {[%emt 0:02:17]} 14. Nce2 {[%emt 0:08:42]} (14. a3 $11) 14... b4 {[%emt 0:05:09]} 15. Nc1 {[%emt 0:00:23]} Qb6 {[%emt 0:02:52]} 16. Nge2 {[%emt 0:11:42]} O-O-O {[%emt 0:28:36]} (16... Nd7 $15) 17. Nd3 $14 {[%emt 0:09:29]} c5 {[%emt 0:00:39]} 18. dxc5 {[%emt 0:00:35]} Nxc5 {[%emt 0:00:14]} 19. Nxc5 {[%emt 0:00:35]} Bxc5 {[%emt 0:00:24]} 20. Nd4 {[%emt 0:00:23]} Nd7 {[%emt 0:06:37] [#]} (20... a3 $14) 21. Bb5 $2 {[%emt 0:07:27] [#]} (21. Nb5 $1 $16) 21... f6 $1 $17 {[%emt 0:08:29]} (21... Bxd4 22. Bxd7+ (22. Bxa4 $2 Bc5 $19) 22... Kxd7 23. Rxd4 $16 (23. exd4 Rc8 $14)) 22. Bxa4 {[%emt 0:10:31]} e5 {[%emt 0:00:23]} 23. Nb3 {[%emt 0:00:26]} (23. Bxd7+ $142 Rxd7 24. Bxe5 fxe5 25. Qxe5) 23... exf4 {[%emt 0:00:56]} 24. Bxd7+ {[%emt 0:00:04]} Rxd7 {[%emt 0:00:07]} 25. Nxc5 {[%emt 0:00:08]} Qxc5 {[%emt 0:00:03]} 26. Qxf4 {[%emt 0:00:21]} Rc7 {[%emt 0:04:36]} 27. Rd2 {[%emt 0:00:14]} (27. Qf5+ $17 Kb8 28. Rd4) 27... Re8 $19 {[%emt 0:00:38]} 28. Re1 {[%emt 0:01:45]} h6 {[%emt 0:01:38]} 29. g5 {[%emt 0:00:55]} fxg5 {[%emt 0:01:15]} 30. hxg5 {[%emt 0:00:02]} h5 {[%emt 0:00:29]} 31. g6 {[%emt 0:00:16]} Kb8 {[%emt 0:00:53]} 32. Qg5 {[%emt 0:01:46]} Ka7 {[%emt 0:01:59]} 33. Qxh5 {[%emt 0:00:47]} Rxe3 {[%emt 0:00:08]} 34. Rc1 {[%emt 0:00:02]} Qc4 {[%emt 0:03:02]} 35. Qh1 {[%emt 0:02:02]} Qc5 $2 {[%emt 0:03:29]} (35... Qf4 $19 {[%cal Od5d4]} 36. Rcd1 Qg3 (36... Qxf3 $2 37. Qh4 $19) (36... Rxf3 $2 37. Qg1+ Qe3 38. Qh2 $19)) 36. f4 $2 {[%emt 0:00:23][%mdl 8192]} (36. Qh5 $11 Qb6 37. Qg4) 36... d4 {[%emt 0:00:15]} 37. Qd1 {[%emt 0:00:03]} Bf3 {[%emt 0:00:28]} 38. Qf1 {[%emt 0:00:13]} Be4 {[%emt 0:00:15][%cal Ob4b3]} 39. Qd1 {[%emt 0:00:28]} Bf3 {[%emt 0:01:33]} (39... b3 $142 40. axb3 Rxb3 (40... Bxg6 41. Rxd4 Rxb3 42. Ra4+ Kb8 43. Qd8+ Rc8 44. Qd2 $19) (40... d3 $2 41. c3 $19)) 40. Qf1 $1 {[%emt 0:01:07]} Be4 {[%emt 0:00:27]} ({Black should try} 40... Rc6 $19 {[%cal Ob4b3] and ...b3! should not be overlooked} 41. f5 Be4 (41... Qxf5 $2 42. Rxd4 $19)) 41. Qg1 $2 {[%emt 0:01:06][%mdl 8192]} (41. Qd1 $1 $11 {and White stays safe.} b3 (41... Bxg6 $2 42. Rxd4 $19) 42. axb3 Rxb3 (42... Bxg6 $2 43. Rxd4 Rxb3 44. Ra4+ Kb7 45. Ka1 $19) (42... d3 $2 43. c3 $19) 43. Rd3 Rxd3 (43... Bxd3 $2 44. cxd3 $19) 44. cxd3 Qxc1+ 45. Qxc1 Bxd3+ 46. Ka2 Rxc1 47. b4 Rc2+ (47... Bxg6 {gets mated.} 48. b5 d3 49. Kb3 d2 50. Kb2 d1=Q 51. b6+ Kxb6 52. f5 Rc2+ 53. Ka3 Qd3+ 54. Kb4 Rc4#) 48. Ka3 Kb6 (48... Bxg6 49. b5 d3 50. Kb4 d2 51. Ka5 Rb2 52. f5 d1=Q 53. b6+ Rxb6 54. fxg6 Qa1#) (48... Rc3+ 49. Ka2 Kb6 50. b5 Kxb5 51. Ka1 Rc2 52. f5 Bxf5 53. Kb1 d3 54. Ka1 d2 55. Kb1 d1=Q#) 49. Kb3 Bf5 (49... Bxg6 50. f5 Bxf5 51. b5 Kxb5 52. Ka3 Kc4 53. Ka4 Ra2#) (49... Rc3+ 50. Kb2 Rc2+ 51. Kb1 Bf5 52. Ka1 d3 53. Kb1 d2 54. Ka1 d1=Q#) 50. Ka3 Be6 (50... Bxg6 51. Kb3 d3 52. Ka4 Bf7 53. b5 Kc5 54. f5 Ra2#) 51. b5 Kxb5 52. f5 Ra2#) 41... Bf5 {[%emt 0:01:57]} 42. Qd1 {[%emt 0:00:37]} b3 {[%emt 0:00:55]} 43. axb3 {[%emt 0:00:29]} Rxb3 {[%emt 0:00:15]} 44. Rxd4 {[%emt 0:00:23] [#]} Rxb2+ $3 {[%emt 0:00:41][%mdl 512]} 45. Kxb2 {[%emt 0:00:21]} Qc3+ {[%emt 0:00:10]} 46. Ka2 {[%emt 0:00:44]} Be6+ {[%emt 0:00:04]} (46... Bxg6 47. Ra4+ Kb6 48. Rb1+ (48. Qd6+ Kb5 $18) 48... Kc5 49. Qg1+ Kd5 50. Qg5+ (50. Qxg6 Qxc2+ 51. Qxc2 Rxc2+ 52. Kb3 Re2 $18) 50... Ke6 51. Qxg6+ Qf6 52. Re1+ Kd6 53. Qd3+) 47. Rd5 {[%emt 0:00:03]} Qc4+ {[%emt 0:00:10]} 48. Ka3 {[%emt 0:00:53]} Qc3+ {[%emt 0:00:25]} 49. Ka2 {[%emt 0:00:25]} Qa5+ {[%emt 0:00:21]} 50. Kb2 {[%emt 0:00:38]} Rb7+ {[%emt 0:00:06] Weighted Error Value: White=0.78/Black=0.43  Loses game:     	White=2     	---        Missed win:     	---       	Black=1      Mistake:       	White=4     	Black=3      Inaccurate:     	White=4     	Black=1      OK:         	White=13    	Black=11     Best:        	White=2     	Black=5      Strong:       	White=2     	Black=1} 0-1